bitfinex-derivatives/quotes_SOLF0:USTF0_20250630
["timestamp","ask_amount","ask_price","bid_price","bid_amount"]
[1751289338365,4.62002058,150.36,150.33,6.15793435]
[1751289338557,4.62002058,150.35,150.33,6.15793435]
[1751289338748,11.01026791,150.38,150.36,6.649]
[1751289338953,4.60645091,150.37,150.36,6.649]
[1751289339661,4.36186791,150.4,150.39,6.6477]
[1751289339856,8.96894456,150.4,150.39,6.6477]
[1751289340857,15.61614456,150.4,150.38,6.6479]
[1751289341056,8.96894456,150.39,150.36,6.15793435]
[1751289341265,4.60707665,150.38,150.35,38.77793435]
[1751289341451,4.60707665,150.37,150.35,38.77793435]
[1751289341652,11.00976791,150.39,150.36,6.6486]
[1751289341852,8.95853083,150.38,150.35,38.77793435]
[1751289342060,4.59666292,150.37,150.35,38.77793435]
[1751289342263,4.36186791,150.38,150.37,6.6486]
[1751289342462,8.95907922,150.38,150.37,6.6486]
[1751289342963,4.59721131,150.38,150.37,6.6486]
[1751289343857,4.36186791,150.43,150.4,6.647]
[1751289344058,4.36186791,150.42,150.4,6.647]
[1751289344257,4.36186791,150.41,150.4,6.647]
[1751289344459,4.36186791,150.42,150.41,6.6468]
[1751289349661,4.36186791,150.42,150.4,6.6471]
[1751289349965,4.36186791,150.42,150.37,32.62]
[1751289349966,4.36186791,150.41,150.37,32.62]
[1751289350162,4.36186791,150.4,150.37,32.62]
[1751289350369,4.36186791,150.41,150.39,6.6473]
[1751289350568,4.36186791,150.4,150.39,6.6473]
[1751289350770,4.36186791,150.41,150.39,6.6473]
[1751289350967,4.36186791,150.4,150.39,6.6473]
[1751289351168,4.36186791,150.41,150.39,6.6473]
[1751289351363,4.36186791,150.4,150.39,6.6473]
[1751289351565,4.36186791,150.41,150.39,6.6473]
[1751289351863,4.36186791,150.4,150.39,6.6473]
[1751289352064,4.36186791,150.41,150.39,6.6473]
[1751289352265,10.24778947,150.42,150.4,6.6472]
[1751289352464,4.40064376,150.41,150.4,6.6472]
[1751289355777,8.97903272,150.41,150.4,6.6472]
[1751289356680,8.96722797,150.41,150.4,6.6472]
[1751289356972,8.96722797,150.41,150.39,6.6474]
[1751289357172,4.56658421,150.4,150.39,6.6474]
[1751289357368,12.56861744,150.4,150.35,6.15793435]
[1751289357578,8.96722797,150.39,150.37,6.6483]
[1751289357768,4.56658421,150.38,150.37,6.6483]
[1751289361379,6.646,150.43,150.37,6.6483]
[1751289361380,4.38790808,150.42,150.4,6.6468]
[1751289361574,12.54423276,150.41,150.36,6.15793435]
[1751289361769,8.94284329,150.4,150.35,6.15793435]
[1751289361974,4.55493521,150.39,150.35,6.15793435]
[1751289362175,4.55493521,150.38,150.35,6.15793435]
[1751289362378,4.38790808,150.4,150.39,6.6477]
[1751289362573,8.94325831,150.4,150.39,6.6477]
[1751289362977,4.55535023,150.4,150.39,6.6477]
[1751289371385,8.94325831,150.4,150.39,6.6477]
[1751289375096,4.55535023,150.4,150.39,6.6477]
[1751289377790,4.58995938,150.4,150.39,6.6477]
[1751289378389,4.38790808,150.43,150.42,6.6464]
[1751289378588,4.57763542,150.43,150.42,6.6464]
[1751289378786,8.9655435,150.43,150.42,6.6464]
[1751289378990,4.57763542,150.43,150.42,6.6464]
[1751289379189,8.9655435,150.43,150.42,6.6464]
[1751289379389,4.57763542,150.43,150.42,6.6464]
[1751289379585,8.9655435,150.43,150.42,6.6464]
[1751289379791,4.57763542,150.43,150.42,6.6464]
[1751289379993,8.9655435,150.43,150.42,6.6464]
[1751289380194,4.57763542,150.43,150.42,6.6464]
[1751289380384,8.9655435,150.43,150.42,6.6464]
[1751289380583,4.57763542,150.43,150.42,6.6464]
[1751289380791,10.24668947,150.45,150.43,6.6457]
[1751289381297,8.96037638,150.44,150.43,6.6457]
[1751289381697,4.38370609,150.44,150.43,6.6457]
[1751289381997,10.24668947,150.45,150.43,6.6457]
[1751289382298,8.96037639,150.44,150.43,6.6457]
[1751289382496,4.57667029,150.44,150.43,6.6457]
[1751289383196,8.9846673,150.44,150.43,6.6457]
[1751289383496,8.99887566,150.44,150.43,6.6457]
[1751289386997,8.99787897,150.44,150.43,6.6457]
[1751289389896,4.58967353,150.44,150.43,6.6457]
[1751289390791,4.58967353,150.44,150.41,6.15793435]
[1751289390792,4.40820544,150.46,150.42,32.82]
[1751289390995,4.40820544,150.45,150.42,32.82]
[1751289391191,4.40504393,150.45,150.42,32.82]
[1751289391395,4.40504393,150.45,150.4,10.69583435]
[1751289391697,11.05004393,150.45,150.4,10.69583435]
[1751289391902,4.40504393,150.45,150.43,6.6455]
[1751289392505,11.05004393,150.45,150.43,6.6455]
[1751289393304,6.645,150.45,150.43,6.6455]
[1751289393505,11.05004393,150.45,150.43,6.6455]
[1751289395107,6.645,150.45,150.43,6.6455]
[1751289396302,10.24698947,150.44,150.42,6.6461]
[1751289397209,10.24698947,150.44,150.41,6.6466]
[1751289397406,6.646,150.43,150.41,6.6466]
[1751289399809,14.6520334,150.44,150.41,6.6466]
[1751289400004,3.60138947,150.44,150.41,6.6466]
[1751289400404,14.6521334,150.44,150.41,6.6466]
[1751289400604,10.24708947,150.44,150.41,6.6466]
[1751289401006,14.6521334,150.44,150.41,6.6466]
[1751289401206,10.24708947,150.44,150.41,6.6466]
[1751289401602,14.6521334,150.44,150.41,6.6466]
[1751289401806,10.24708947,150.44,150.41,6.6466]
[1751289402007,14.6521334,150.44,150.41,6.6466]
[1751289402212,14.6521334,150.44,150.42,6.6463]
[1751289402412,10.24708947,150.44,150.42,6.6463]
[1751289402911,4.52366362,150.43,150.42,6.6463]
[1751289404414,4.52475161,150.43,150.42,6.6463]
[1751289406314,8.92979554,150.43,150.41,6.6466]
[1751289406521,4.52475161,150.42,150.41,6.6466]
[1751289407118,4.52475161,150.42,150.36,10.37337913]
[1751289407119,8.12614108,150.42,150.37,6.15793435]
[1751289407308,4.52475161,150.41,150.37,6.15793435]
[1751289407512,8.0064334,150.42,150.37,6.15793435]
[1751289407712,4.51516157,150.41,150.37,6.15793435]
[1751289407913,8.0064334,150.42,150.37,6.15793435]
[1751289408107,4.51516228,150.41,150.37,6.15793435]
[1751289408313,8.0064334,150.42,150.37,6.15793435]
[1751289408515,4.51536655,150.41,150.37,6.15793435]
[1751289408708,8.0064334,150.42,150.37,6.15793435]
[1751289408709,14.6528334,150.42,150.37,6.15793435]
[1751289408915,4.51536511,150.41,150.37,6.15793435]
[1751289409119,10.24778947,150.42,150.4,6.647]
[1751289409315,4.51543495,150.41,150.4,6.647]
[1751289410613,4.51543495,150.41,150.39,6.6475]
[1751289410813,4.5157909,150.4,150.37,6.15793435]
[1751289411019,4.5157909,150.41,150.37,6.15793435]
[1751289411215,8.11718037,150.4,150.36,41.12073435]
[1751289411417,3.60138947,150.4,150.36,41.12073435]
[1751289411921,3.60138947,150.4,150.38,6.6479]
[1751289412421,3.60138947,150.4,150.39,6.6477]
[1751289412720,8.11715686,150.4,150.36,41.12073435]
[1751289412922,4.51576739,150.39,150.36,41.12073435]
[1751289413416,8.11715686,150.38,150.35,6.15793435]
[1751289413621,3.60138947,150.38,150.35,6.15793435]
[1751289414023,3.60138947,150.38,150.36,6.6486]
[1751289414317,4.51576739,150.38,150.36,6.6486]
[1751289414517,4.51576739,150.38,150.34,6.15793435]
[1751289416222,10.24928947,150.39,150.34,6.15793435]
[1751289417323,14.71722014,150.39,150.34,6.15793435]
[1751289417526,14.71722014,150.39,150.37,6.6484]
[1751289418524,10.24928947,150.39,150.37,6.6484]
[1751289419025,6.6482,150.38,150.36,6.6488]
[1751289419225,11.11525465,150.38,150.36,6.6488]
[1751289420626,3.60138947,150.37,150.36,6.6488]
[1751289421222,3.60138947,150.37,150.33,6.15793435]
[1751289421518,3.60138947,150.37,150.31,6.15793435]
[1751289421718,4.46705465,150.36,150.31,6.15793435]
[1751289422125,3.60138947,150.37,150.31,6.15793435]
[1751289422326,8.06844412,150.37,150.3,41.31003435]
[1751289422529,6.649,150.36,150.34,6.6497]
[1751289423626,10.25038947,150.36,150.34,6.6497]
[1751289424934,10.25038947,150.36,150.33,6.6501]
[1751289425229,10.25038947,150.36,150.3,35.1521]
[1751289425633,10.25038947,150.36,150.33,6.6501]
[1751289425833,14.69860324,150.36,150.33,6.6501]
[1751289426032,10.25038947,150.36,150.33,6.6501]
[1751289426236,6.6496,150.35,150.33,6.6501]
[1751289426831,3.60138947,150.34,150.33,6.6501]
[1751289429836,32.82,150.37,150.35,6.6491]
[1751289429837,37.3236077,150.37,150.35,6.6491]
[1751289430136,2.30678698,150.36,150.3,35.12678698]
[1751289430340,2.30678698,150.34,150.3,35.12678698]
[1751289430727,2.30678698,150.34,150.33,6.6503]
[1751289431836,3.604104,150.35,150.34,6.6499]
[1751289442342,40.92680431,150.37,150.35,6.6492]
[1751289442540,36.424104,150.37,150.35,6.6492]
[1751289442741,36.424104,150.37,150.3,36.424104]
[1751289442937,43.072904,150.37,150.35,6.6494]
[1751289443346,47.57560431,150.37,150.35,6.6494]
[1751289443546,43.072904,150.37,150.35,6.6494]
[1751289444046,43.072904,150.37,150.34,6.6496]
[1751289444246,43.072904,150.37,150.3,32.82]
[1751289444247,3.604104,150.35,150.3,32.82]
[1751289445542,10.253604,150.35,150.33,6.6501]
[1751289446850,3.604104,150.35,150.34,6.6499]
[1751289447348,3.604104,150.35,150.33,6.6502]
[1751289448346,10.253604,150.35,150.33,6.6502]
[1751289451752,2.30679242,150.34,150.33,6.6502]
[1751289455959,6.81113644,150.35,150.34,6.6499]
[1751289456954,2.30679242,150.35,150.34,6.6499]
[1751289457153,6.81113644,150.35,150.34,6.6499]
[1751289457455,8.82433226,150.36,150.35,6.6495]
[1751289457656,6.81113644,150.36,150.35,6.6495]
[1751289457858,11.13112468,150.36,150.35,6.6495]
[1751289458463,6.81113644,150.36,150.35,6.6495]
[1751289460463,11.13112468,150.36,150.35,6.6495]
[1751289460964,6.81113644,150.36,150.35,6.6495]
[1751289461157,4.50434402,150.36,150.35,6.6495]
[1751289461361,2.1656,150.42,150.39,6.6477]
[1751289461362,4.32495231,150.4,150.39,6.6477]
[1751289461564,6.63174473,150.41,150.39,6.6477]
[1751289461862,39.29174473,150.42,150.38,2.30679242]
[1751289462063,2.30679242,150.43,150.39,2.30679242]
[1751289462464,6.63174473,150.43,150.39,2.30679242]
[1751289462664,2.30679242,150.43,150.41,6.6465]
[1751289462967,6.63174473,150.43,150.39,2.30679242]
[1751289463164,6.63174473,150.43,150.41,6.6468]
[1751289464167,2.30679242,150.43,150.41,6.6468]
[1751289465662,2.30679242,150.43,150.42,6.6464]
[1751289465864,2.30679242,150.44,150.4,2.30679242]
[1751289466571,8.95229242,150.44,150.42,6.6462]
[1751289467569,2.30679242,150.43,150.42,6.6462]
[1751289468675,32.66,150.45,150.43,6.6458]
[1751289468879,2.30679242,150.44,150.43,6.6458]
[1751289469274,2.30679242,150.45,150.44,6.6454]
[1751289469975,2.30679242,150.45,150.43,6.6457]
[1751289470578,2.30679242,150.44,150.43,6.6457]
[1751289472079,2.30679242,150.45,150.44,6.6453]
[1751289472773,6.6443,150.47,150.45,6.645]
[1751289472774,2.30679242,150.46,150.45,6.645]
[1751289474281,39.3039,150.48,150.45,6.645]
[1751289474477,2.30679242,150.46,150.45,6.645]
[1751289475283,2.30679242,150.46,150.44,6.6453]
[1751289475482,2.30679242,150.45,150.4,2.3407]
[1751289475686,2.30679242,150.44,150.41,2.30679242]
[1751289475883,3.59883338,150.46,150.4,2.3407]
[1751289476382,10.24373338,150.46,150.43,6.6455]
[1751289477278,3.59883338,150.46,150.4,2.3407]
[1751289477885,6.6452,150.45,150.42,6.6461]
[1751289479388,6.6452,150.45,150.43,6.6459]
[1751289479786,10.24363338,150.46,150.4,2.3407]
[1751289480382,10.24363338,150.46,150.44,6.6452]
[1751289481787,6.6451,150.45,150.43,6.6456]
[1751289482387,10.24363338,150.46,150.43,6.6456]
[1751289484488,6.645,150.45,150.43,6.6456]
[1751289484790,3.59883338,150.46,150.43,6.6456]
[1751289485385,127.56,150.47,150.41,3.59883338]
[1751289485778,134.2044,150.47,150.45,6.6449]
[1751289485983,32.66,150.48,150.42,32.64]
[1751289486183,3.59883338,150.5,150.42,32.64]
[1751289486390,3.59883338,150.48,150.42,32.64]
[1751289486989,3.59883338,150.48,150.45,6.6449]
[1751289487686,6.6446,150.46,150.44,6.6453]
[1751289487985,3.59883338,150.48,150.44,6.6453]
[1751289488290,6.6445,150.47,150.44,6.6453]
[1751289490481,10.24333338,150.47,150.44,6.6453]
[1751289491185,10.24333338,150.47,150.45,6.645]
[1751289491385,3.59883338,150.47,150.45,6.645]
[1751289491591,6.6439,150.48,150.45,6.645]
[1751289492596,3.59883338,150.47,150.42,32.64]
[1751289492983,6.6448,150.46,150.43,6.6455]
[1751289493183,6.6448,150.46,150.42,32.64]
[1751289493594,6.6448,150.46,150.43,6.6458]
[1751289493993,6.6448,150.46,150.42,32.64]
[1751289494297,6.6448,150.46,150.44,6.6452]
[1751289496393,4.522806,150.49,150.45,6.645]
[1751289496583,3.59883338,150.47,150.45,6.645]
[1751289497594,6.644,150.48,150.46,6.6446]
[1751289498292,6.644,150.48,150.45,6.6448]
[1751289498492,6.6442,150.47,150.45,6.6448]
[1751289499601,6.6439,150.48,150.45,6.6448]
[1751289500400,3.59883338,150.47,150.42,32.64]
[1751289501198,6.6446,150.46,150.44,6.6452]
[1751289504190,11.167406,150.46,150.44,6.6452]
[1751289504799,6.6446,150.46,150.44,6.6452]
[1751289505101,11.19959607,150.46,150.44,6.6452]
[1751289505402,4.55499607,150.45,150.44,6.6452]
[1751289506998,11.20009607,150.45,150.43,6.6456]
[1751289507203,4.55499607,150.44,150.43,6.6456]
[1751289513808,4.4542237,150.47,150.46,6.6446]
[1751289514113,4.5573429,150.47,150.46,6.6446]
[1751289514314,4.4542237,150.49,150.48,6.6437]
[1751289514518,4.55516583,150.49,150.48,6.6437]
[1751289514704,9.00938953,150.49,150.48,6.6437]
[1751289514904,4.55516583,150.49,150.48,6.6437]
[1751289516510,32.7,150.53,150.51,6.642]
[1751289516511,36.29883338,150.53,150.51,6.642]
[1751289516714,4.55231067,150.52,150.51,6.642]
[1751289518221,4.55231067,150.53,150.52,6.6419]
[1751289521717,4.55231067,150.53,150.51,6.6422]
[1751289522017,4.55231067,150.52,150.47,38.84757186]
[1751289522211,4.55231067,150.52,150.48,6.6434]
[1751289522212,8.15114405,150.51,150.48,6.6434]
[1751289522412,8.15114405,150.51,150.47,32.68]
[1751289522716,8.25653171,150.51,150.47,32.68]
[1751289522916,8.25653171,150.51,150.49,6.6431]
[1751289523312,14.89903171,150.51,150.47,32.68]
[1751289523619,10.24133338,150.51,150.47,32.68]
[1751289524020,14.89903171,150.51,150.47,32.68]
[1751289524220,4.65769833,150.5,150.47,32.68]
[1751289524517,4.65769833,150.5,150.49,6.6433]
[1751289525622,4.65769833,150.5,150.48,6.6435]
[1751289526620,4.65769833,150.5,150.47,32.68]
[1751289526819,11.30049833,150.5,150.47,32.68]
[1751289527011,4.65769833,150.51,150.47,32.68]
[1751289527218,4.65769833,150.5,150.47,32.68]
[1751289527422,11.30019833,150.51,150.47,32.68]
[1751289527622,4.65769833,150.5,150.48,6.6434]
[1751289527918,4.65769833,150.5,150.47,32.68]
[1751289528118,4.65769833,150.51,150.49,6.6433]
[1751289528309,4.65769833,150.5,150.49,6.6433]
[1751289528514,4.65769833,150.51,150.49,6.6433]
[1751289528714,4.65769833,150.5,150.49,6.6433]
[1751289528921,11.30009833,150.51,150.49,6.6433]
[1751289529118,4.65769833,150.5,150.49,6.6433]
[1751289529515,4.65769833,150.52,150.5,6.6427]
[1751289529715,4.65769833,150.51,150.5,6.6427]
[1751289532315,4.65769833,150.52,150.5,6.6427]
[1751289532522,4.65769833,150.51,150.5,6.6427]
[1751289532722,4.65769833,150.52,150.5,6.6427]
[1751289532922,4.65769833,150.51,150.5,6.6427]
[1751289533123,4.65769833,150.52,150.5,6.6427]
[1751289533323,4.65769833,150.51,150.5,6.6427]
[1751289533523,4.65769833,150.52,150.5,6.6427]
[1751289533724,4.65769833,150.51,150.5,6.6427]
[1751289533918,4.65769833,150.52,150.5,6.6427]
[1751289534123,4.65769833,150.51,150.5,6.6427]
[1751289534322,10.24053338,150.53,150.5,6.6427]
[1751289534323,4.65769833,150.52,150.5,6.6427]
[1751289534528,4.65769833,150.51,150.5,6.6427]
[1751289534732,11.29969833,150.52,150.49,6.6432]
[1751289535028,4.65769833,150.51,150.49,6.6432]
[1751289535226,11.29969833,150.52,150.49,6.6432]
[1751289536026,3.59883338,150.51,150.49,6.6432]
[1751289536424,8.25653171,150.51,150.49,6.6432]
[1751289537430,4.65769833,150.51,150.5,6.6428]
[1751289539023,4.65769833,150.51,150.47,32.68]
[1751289539024,4.65769833,150.51,150.49,6.6431]
[1751289541923,11.30009833,150.51,150.49,6.6431]
[1751289542118,4.65769833,150.51,150.5,6.6428]
[1751289542327,8.25653171,150.53,150.5,6.6428]
[1751289542529,4.65769833,150.52,150.5,6.6428]
[1751289542728,4.65769833,150.51,150.5,6.6428]
[1751289543027,4.65769833,150.52,150.5,6.6428]
[1751289543227,4.65769833,150.51,150.5,6.6428]
[1751289543430,4.65769833,150.52,150.51,6.6424]
[1751289543620,8.25653171,150.55,150.51,6.6424]
[1751289543819,4.65769833,150.54,150.51,6.6424]
[1751289544024,4.65769833,150.53,150.51,6.6424]
[1751289544225,4.65769833,150.54,150.51,6.6424]
[1751289544531,11.29919833,150.53,150.51,6.6424]
[1751289544730,6.6415,150.53,150.51,6.6424]
[1751289545030,11.29919833,150.53,150.51,6.6424]
[1751289545230,6.6415,150.53,150.51,6.6424]
[1751289545428,11.29919833,150.53,150.51,6.6424]
[1751289545628,6.6415,150.53,150.51,6.6424]
[1751289545828,11.29919833,150.53,150.51,6.6424]
[1751289546032,6.6415,150.53,150.51,6.6424]
[1751289546231,11.29919833,150.53,150.51,6.6424]
[1751289546431,4.65769833,150.52,150.51,6.6424]
[1751289546833,4.65769833,150.53,150.51,6.6424]
[1751289547033,4.65769833,150.52,150.51,6.6424]
[1751289547337,4.65769833,150.53,150.51,6.6424]
[1751289547530,4.65769833,150.52,150.51,6.6424]
[1751289547833,4.65769833,150.53,150.51,6.6424]
[1751289548029,4.65769833,150.52,150.51,6.6424]
[1751289548232,4.65769833,150.53,150.51,6.6424]
[1751289548433,4.65769833,150.52,150.51,6.6424]
[1751289548633,4.65769833,150.53,150.51,6.6424]
[1751289548832,4.65769833,150.52,150.51,6.6424]
[1751289549031,4.65769833,150.53,150.51,6.6424]
[1751289549231,4.65769833,150.52,150.51,6.6424]
[1751289549432,6.6413,150.54,150.51,6.6424]
[1751289549433,4.65769833,150.53,150.51,6.6424]
[1751289549632,4.65769833,150.52,150.51,6.6424]
[1751289549829,6.6413,150.54,150.51,6.6424]
[1751289549830,4.65769833,150.53,150.51,6.6424]
[1751289550031,4.65769833,150.52,150.51,6.6424]
[1751289550233,4.65769833,150.53,150.51,6.6424]
[1751289550433,4.65769833,150.52,150.51,6.6424]
[1751289550632,4.65769833,150.53,150.51,6.6424]
[1751289550833,4.65769833,150.52,150.51,6.6424]
[1751289551034,4.65769833,150.53,150.51,6.6424]
[1751289551330,4.65769833,150.52,150.51,6.6424]
[1751289551535,4.65769833,150.53,150.51,6.6424]
[1751289551730,4.65769833,150.52,150.51,6.6424]
[1751289551935,4.65769833,150.53,150.51,6.6424]
[1751289552138,4.65769833,150.52,150.51,6.6424]
[1751289552437,4.65769833,150.54,150.52,6.6416]
[1751289552631,4.65769833,150.53,150.52,6.6416]
[1751289555539,4.65769833,150.53,150.51,6.642]
[1751289555745,4.65769833,150.52,150.51,6.642]
[1751289558043,6.6404,150.56,150.54,6.6407]
[1751289558245,4.64508632,150.55,150.54,6.6407]
[1751289561151,4.64508632,150.55,150.53,6.6413]
[1751289561452,3.59883338,150.56,150.53,6.6413]
[1751289561950,10.23923338,150.56,150.53,6.6413]
[1751289562854,6.6409,150.55,150.52,6.6418]
[1751289563052,3.59883338,150.56,150.52,6.6418]
[1751289563448,6.6411,150.54,150.52,6.6418]
[1751289564751,6.6411,150.54,150.51,39.3022]
[1751289564752,10.24023338,150.54,150.51,39.3022]
[1751289565152,10.24023338,150.54,150.51,32.66]
[1751289565357,10.24023338,150.54,150.51,39.3022]
[1751289567158,10.24023338,150.54,150.51,6.6422]
[1751289568360,6.6415,150.53,150.51,6.6422]
[1751289569154,10.24003338,150.54,150.51,6.6422]
[1751289570160,4.60468985,150.53,150.51,6.6422]
[1751289570355,10.24003338,150.54,150.51,6.6422]
[1751289570557,4.59332133,150.53,150.51,6.6422]
[1751289570760,10.24003338,150.54,150.51,6.6422]
[1751289570960,4.59332133,150.53,150.51,6.6422]
[1751289571163,10.24003338,150.54,150.51,6.6422]
[1751289571362,4.59351056,150.53,150.51,6.6422]
[1751289571658,10.24003338,150.54,150.51,6.6422]
[1751289571860,4.5935106,150.53,150.51,6.6422]
[1751289572160,10.24003338,150.54,150.51,6.6422]
[1751289572360,4.59373284,150.53,150.52,6.6419]
[1751289574056,4.59373284,150.53,150.51,6.6422]
[1751289574261,4.59468363,150.52,150.51,6.6422]
[1751289578165,4.59583615,150.52,150.51,6.6422]
[1751289589668,4.59583615,150.52,150.51,8.94298263]
[1751289590570,2.30078263,150.54,150.53,6.6415]
[1751289590764,6.90742023,150.54,150.53,6.6415]
[1751289591368,4.6066376,150.54,150.53,6.6415]
[1751289593067,6.90742023,150.54,150.53,6.6415]
[1751289595076,4.6066376,150.54,150.53,6.6415]
[1751289595375,6.90742023,150.54,150.53,6.6415]
[1751289596879,4.6066376,150.54,150.53,6.6415]
[1751289597272,4.6066376,150.54,150.53,8.94228263]
[1751289598671,6.90742023,150.54,150.53,6.6415]
[1751289598878,6.90742023,150.54,150.51,6.16757186]
[1751289599071,6.90742023,150.53,150.51,6.16757186]
[1751289599270,4.6066376,150.52,150.51,6.16757186]
[1751289599471,4.6066376,150.52,150.5,38.80757186]
[1751289599772,2.30078263,150.53,150.52,6.6419]
[1751289599973,4.60781518,150.53,150.52,6.6419]
[1751289601969,6.90859781,150.53,150.5,6.16757186]
[1751289602175,6.90859781,150.52,150.48,41.10835449]
[1751289602484,4.60781518,150.51,150.5,6.6428]
[1751289603879,6.90859781,150.51,150.5,6.6428]
[1751289604379,4.60781518,150.51,150.5,6.6428]
[1751289604679,6.90859781,150.51,150.5,6.6428]
[1751289605080,4.60781518,150.51,150.5,6.6428]
[1751289608975,6.90859781,150.51,150.5,6.6428]
[1751289609985,6.90859781,150.51,150.47,6.16757186]
[1751289610287,2.30078263,150.48,150.46,6.16757186]
[1751289610481,6.643,150.5,150.48,6.6436]
[1751289610685,2.30078263,150.49,150.46,6.16757186]
[1751289610885,2.30078263,150.48,150.46,6.16757186]
[1751289611086,2.30078263,150.48,150.47,6.6442]
[1751289613281,2.30078263,150.49,150.48,6.6437]
[1751289615480,6.88868911,150.49,150.48,6.6437]
[1751289618290,6.88868911,150.49,150.48,6.6437]
[1751289621190,4.58790648,150.49,150.48,6.6437]
[1751289621692,2.30078263,150.5,150.49,6.6433]
[1751289621890,6.81401032,150.5,150.49,6.6433]
[1751289622089,2.30078263,150.5,150.49,6.6433]
[1751289622291,6.81401032,150.5,150.49,6.6433]
[1751289622490,2.30078263,150.5,150.49,6.6433]
[1751289622786,6.81401032,150.5,150.49,6.6433]
[1751289622992,2.30078263,150.5,150.49,6.6433]
[1751289623293,6.81401032,150.5,150.49,6.6433]
[1751289625894,39.2822,150.52,150.5,6.6426]
[1751289626087,6.82437519,150.51,150.5,6.6426]
[1751289626989,4.52359256,150.51,150.5,6.6426]
[1751289627188,6.82437519,150.51,150.5,6.6426]
[1751289627795,6.82437519,150.51,150.49,6.6431]
[1751289627988,2.30078263,150.5,150.49,6.6431]
[1751289629194,6.82463209,150.5,150.49,6.6431]
[1751289629388,2.30078263,150.5,150.49,6.6431]
[1751289631094,6.8245389,150.5,150.49,6.6431]
[1751289631294,2.30078263,150.5,150.49,6.6431]
[1751289631497,2.30078263,150.5,150.45,6.16757186]
[1751289631690,2.30078263,150.46,150.45,6.16757186]
[1751289631890,2.30078263,150.46,150.44,6.16757186]
[1751289632090,2.30078263,150.46,150.42,8.46835449]
[1751289632492,2.30078263,150.46,150.45,6.645]
[1751289632893,6.6439,150.48,150.45,6.645]
[1751289633094,2.30078263,150.46,150.45,6.645]
[1751289636196,4.52317107,150.49,150.42,2.30078263]
[1751289636394,2.30078263,150.48,150.44,2.30078263]
[1751289637100,2.30078263,150.47,150.43,2.30078263]
[1751289638696,2.30078263,150.47,150.46,6.6446]
[1751289639101,8.94498263,150.47,150.45,6.6448]
[1751289639403,2.30078263,150.46,150.45,6.6448]
[1751289640798,2.30078263,150.49,150.45,34.94078263]
[1751289641204,2.30078263,150.48,150.47,6.6438]
[1751289642101,2.30078263,150.49,150.48,6.6437]
[1751289644904,4.52317107,150.5,150.49,6.6433]
[1751289645097,2.30078263,150.5,150.49,6.6433]
[1751289645302,6.8239537,150.5,150.49,6.6433]
[1751289645497,2.30078263,150.5,150.49,6.6433]
[1751289645701,6.8239537,150.5,150.49,6.6433]
[1751289645906,2.30078263,150.5,150.49,6.6433]
[1751289646111,4.52317107,150.5,150.49,6.6433]
[1751289646402,6.8239537,150.5,150.49,6.6433]
[1751289648412,13.4667537,150.5,150.45,41.09447186]
[1751289648602,2.30078263,150.48,150.45,32.64]
[1751289649210,6.80898644,150.48,150.45,32.64]
[1751289649511,2.30078263,150.48,150.47,6.6442]
[1751289649707,6.80898644,150.48,150.47,6.6442]
[1751289649908,2.30078263,150.48,150.47,6.6442]
[1751289650210,6.80898644,150.48,150.47,6.6442]
[1751289650406,2.30078263,150.48,150.47,6.6442]
[1751289650610,6.80898644,150.48,150.47,6.6442]
[1751289650813,6.80898644,150.49,150.48,6.6437]
[1751289652614,13.45228644,150.49,150.45,32.64]
[1751289652913,6.80898644,150.48,150.45,32.64]
[1751289653110,2.30078263,150.48,150.45,32.64]
[1751289653809,2.30078263,150.48,150.47,6.6442]
[1751289654007,6.82269847,150.48,150.47,6.6442]
[1751289654512,4.52191584,150.48,150.47,6.6442]
[1751289655111,2.30078263,150.51,150.49,6.643]
[1751289655311,4.52191584,150.5,150.49,6.643]
[1751289656304,2.30078263,150.51,150.5,6.6428]
[1751289656502,6.82275533,150.51,150.5,6.6428]
[1751289657817,4.5219727,150.51,150.5,6.6428]
[1751289658914,84.64136433,150.54,150.48,6.16757186]
[1751289658915,4.510051,150.53,150.48,6.16757186]
[1751289659215,4.510051,150.52,150.51,6.6424]
[1751289659415,4.510051,150.53,150.48,6.16757186]
[1751289659716,4.510051,150.52,150.48,6.16757186]
[1751289659911,4.510051,150.53,150.52,6.6419]